bitfinex-derivatives/quotes_BTCF0:USTF0_20251215
["timestamp","ask_amount","ask_price","bid_price","bid_amount"]
[1765822247976,0.0010001,85964.0,85963.0,0.69168]
[1765822248273,0.0010001,85964.0,85963.0,1.0641131]
[1765822248466,0.0020001,85964.0,85963.0,1.0641131]
[1765822249058,0.0020001,85964.0,85963.0,1.18044154]
[1765822249059,0.0010001,85964.0,85963.0,1.18044154]
[1765822249463,1e-07,85964.0,85963.0,0.48876154]
[1765822249666,1e-07,85964.0,85963.0,0.49076154]
[1765822250374,1e-07,85964.0,85963.0,0.49276154]
[1765822250774,1e-07,85964.0,85963.0,0.89276154]
[1765822251073,5e-08,85983.0,85963.0,0.89276154]
[1765822251074,5e-08,85983.0,85971.0,0.703312]
[1765822251275,5e-08,85983.0,85982.0,0.0116305]
[1765822251474,0.20000005,85983.0,85982.0,1.1037905]
[1765822252076,0.20138882,85983.0,85982.0,1.1037905]
[1765822252974,0.20138882,85983.0,85982.0,1.1047905]
[1765822253678,0.20138882,85983.0,85982.0,1.1057905]
[1765822253878,0.88651882,85983.0,85982.0,1.1057905]
[1765822254078,0.88651882,85983.0,85982.0,0.3744305]
[1765822256083,0.88651882,85983.0,85982.0,1.0661105]
[1765822256376,0.88651882,85983.0,85982.0,1.0651105]
[1765822256580,0.88651882,85983.0,85982.0,1.0641105]
[1765822258783,0.53355882,85983.0,85982.0,1.0641105]
[1765822258979,0.20138882,85983.0,85982.0,1.0641105]
[1765822259384,0.88651882,85983.0,85982.0,1.0641105]
[1765822260080,0.88651882,85983.0,85982.0,1.0661105]
[1765822261476,0.88651882,85983.0,85982.0,1.0651105]
[1765822261881,0.88651882,85983.0,85982.0,0.3734305]
[1765822262081,0.88651882,85983.0,85982.0,1.0636205]
[1765822262581,0.88651882,85983.0,85982.0,0.3608]
[1765822262781,0.7065615,85975.0,85974.0,0.00017452]
[1765822262985,0.8665615,85975.0,85974.0,0.00017452]
[1765822263285,0.90921,85970.0,85969.0,0.3608]
[1765822263482,1.07921,85970.0,85969.0,0.3608]
[1765822263783,1.0908421,85970.0,85969.0,0.3608]
[1765822264174,1.09223087,85970.0,85969.0,0.3608]
[1765822264874,1.09223087,85970.0,85961.0,0.00017452]
[1765822264875,0.7065632,85962.0,85961.0,0.01180782]
[1765822265075,1.25573,85962.0,85961.0,0.01180782]
[1765822265274,1.07711877,85962.0,85961.0,0.01180782]
[1765822265786,1.23711877,85962.0,85961.0,0.01180782]
[1765822266279,1.23711877,85962.0,85961.0,0.01280782]
[1765822266478,1.23711877,85962.0,85961.0,0.01380782]
[1765822266782,0.87631877,85962.0,85961.0,0.01380782]
[1765822266977,1.21711877,85962.0,85961.0,0.01380782]
[1765822267578,1.22711877,85962.0,85961.0,0.01380782]
[1765822268980,1.05711877,85962.0,85961.0,0.34746782]
[1765822269181,1.21711877,85962.0,85961.0,0.34746782]
[1765822269590,1.21711877,85962.0,85961.0,0.01380782]
[1765822270083,0.72530877,85962.0,85961.0,0.70399782]
[1765822270283,0.86530877,85962.0,85961.0,0.70399782]
[1765822270586,1.20711877,85962.0,85961.0,0.70399782]
[1765822270988,1.20711877,85962.0,85961.0,0.00217452]
[1765822271882,1.20711877,85962.0,85961.0,0.69236452]
[1765822272074,0.86530877,85962.0,85961.0,0.69236452]
[1765822272276,7e-08,85962.0,85961.0,0.80869566]
[1765822272482,5e-08,85983.0,85977.0,0.69019]
[1765822272689,0.51329418,85978.0,85977.0,0.7018212]
[1765822272886,0.85510418,85978.0,85977.0,0.0116312]
[1765822273098,0.69493,85976.0,85975.0,0.7312]
[1765822273387,0.69493,85969.0,85968.0,0.0116324]
[1765822273581,1.2573623,85969.0,85968.0,0.0116324]
[1765822274593,1.2573623,85969.0,85968.0,0.001]
[1765822275083,0.69493,85962.0,85961.0,0.00217452]
[1765822275287,1.24573,85962.0,85961.0,0.00017452]
[1765822275680,1.24573,85962.0,85961.0,0.01180792]
[1765822275883,1.24573,85962.0,85961.0,0.00017452]
[1765822277286,0.35312,85962.0,85961.0,0.69036452]
[1765822277988,0.49312,85962.0,85961.0,0.69036452]
[1765822278391,0.48312,85962.0,85961.0,0.69036452]
[1765822278694,0.82493,85962.0,85961.0,0.69036452]
[1765822279084,0.3608,85969.0,85968.0,0.7018224]
[1765822279586,0.70449,85975.0,85974.0,0.3452916]
[1765822279794,0.88449,85975.0,85974.0,0.0116316]
[1765822280390,0.88449,85975.0,85974.0,0.7018216]
[1765822280892,0.88449,85975.0,85974.0,0.3452916]
[1765822281394,0.88449,85975.0,85974.0,0.7018216]
[1765822281598,0.88449,85975.0,85974.0,0.0116316]
[1765822282186,0.88449,85975.0,85974.0,0.3452916]
[1765822282393,0.69493,85965.0,85964.0,1.42139]
[1765822282690,0.69493,85965.0,85961.0,0.00017452]
[1765822282691,0.69493,85962.0,85961.0,0.00017452]
[1765822282885,0.87493,85962.0,85961.0,0.00017452]
[1765822283086,0.87493,85962.0,85961.0,1.83383452]
[1765822283290,0.3608,85968.0,85967.0,0.7018226]
[1765822283485,0.00956,85975.0,85967.0,0.7018226]
[1765822283486,0.36368,85975.0,85974.0,0.7018216]
[1765822283687,0.12056,85975.0,85974.0,1.4330216]
[1765822283887,0.01056,85975.0,85974.0,1.4330216]
[1765822284090,0.01056,85975.0,85974.0,1.54935274]
[1765822284283,0.00956,85975.0,85974.0,1.54935274]
[1765822284697,0.0093854,85975.0,85974.0,1.54935274]
[1765822285202,0.0093854,85975.0,85974.0,1.55235274]
[1765822285596,5e-08,85983.0,85977.0,0.7018212]
[1765822285887,0.06017418,85978.0,85977.0,1.0626212]
[1765822286088,0.06017418,85978.0,85977.0,1.17893475]
[1765822286286,0.75510418,85978.0,85977.0,1.91013475]
[1765822286793,0.75510418,85978.0,85977.0,1.91009475]
[1765822286996,0.75510418,85978.0,85977.0,1.91209475]
[1765822287382,0.41329418,85978.0,85977.0,1.91209475]
[1765822287587,0.41329418,85978.0,85977.0,1.91409475]
[1765822288195,0.06017418,85978.0,85977.0,1.91309475]
[1765822288590,0.84510418,85978.0,85977.0,1.55229475]
[1765822288897,0.84510418,85978.0,85977.0,0.7437912]
[1765822289195,0.84510418,85978.0,85977.0,0.0136312]
[1765822289594,0.84510418,85978.0,85977.0,0.0126312]
[1765822290096,0.36429418,85978.0,85977.0,0.6747112]
[1765822290289,0.49429418,85978.0,85977.0,0.6747112]
[1765822291000,0.82966418,85978.0,85977.0,0.3360512]
[1765822291599,0.14217418,85978.0,85977.0,0.6747112]
[1765822292594,0.01017418,85978.0,85977.0,0.6747112]
[1765822292803,0.01017418,85978.0,85977.0,0.79302069]
[1765822293192,0.01017418,85978.0,85977.0,0.79202069]
[1765822293393,0.01017418,85978.0,85977.0,0.79302069]
[1765822293991,0.01017418,85978.0,85977.0,0.79402069]
[1765822294187,0.01017418,85978.0,85977.0,0.79502069]
[1765822294391,0.34936418,85978.0,85977.0,0.79502069]
[1765822294792,0.82564418,85978.0,85977.0,0.7467512]
[1765822294993,0.01017418,85978.0,85977.0,1.53469069]
[1765822295606,0.01017418,85978.0,85977.0,1.53269069]
[1765822295796,0.01017418,85978.0,85977.0,1.53369069]
[1765822296197,0.01017418,85978.0,85977.0,1.53169069]
[1765822296398,0.01017418,85978.0,85977.0,1.53369069]
[1765822296600,8e-08,85978.0,85977.0,1.53369069]
[1765822297000,8e-08,85978.0,85977.0,1.53469069]
[1765822297707,8e-08,85978.0,85977.0,0.86306069]
[1765822298608,8e-08,85978.0,85977.0,0.86106069]
[1765822298808,5e-08,85983.0,85982.0,0.0116305]
[1765822299009,0.06000005,85983.0,85982.0,0.0116305]
[1765822299200,0.06000005,85983.0,85982.0,0.6832605]
[1765822299509,0.06000005,85983.0,85982.0,0.79956999]
[1765822299912,0.06000005,85983.0,85982.0,0.80156999]
[1765822300103,0.06000005,85983.0,85982.0,0.80356999]
[1765822300702,0.39919005,85983.0,85982.0,0.80356999]
[1765822300911,0.84547005,85983.0,85982.0,0.80356999]
[1765822301218,0.83547005,85983.0,85982.0,0.83325049]
[1765822301406,0.86547005,85983.0,85982.0,0.83325049]
[1765822301601,0.86547005,85983.0,85982.0,0.34003]
[1765822301812,0.86547005,85983.0,85964.0,0.3608]
[1765822301813,0.21163055,85983.0,85964.0,0.3608]
[1765822302015,0.66547,85969.0,85968.0,0.6832624]
[1765822302312,0.66547,85967.0,85966.0,0.11630273]
[1765822302615,0.66547,85966.0,85965.0,1.4143028]
[1765822302818,0.84547,85966.0,85965.0,1.4143028]
[1765822303016,0.77261,85965.0,85964.0,0.002]
[1765822303217,0.96261,85965.0,85964.0,0.002]
[1765822303615,0.66547,85962.0,85961.0,0.68343792]
[1765822303817,0.81694,85980.0,85974.0,0.0116315]
[1765822303818,0.66547,85975.0,85974.0,0.0116315]
[1765822304015,0.66547,85966.0,85965.0,0.0126328]
[1765822304313,0.86547,85966.0,85965.0,0.0126328]
[1765822305116,0.86547,85966.0,85965.0,0.3486628]
[1765822305316,0.86547,85966.0,85965.0,0.3476628]
[1765822305517,0.86547,85966.0,85965.0,0.0116328]
[1765822305718,0.86547,85966.0,85961.0,0.00117452]
[1765822305719,0.66547,85963.0,85962.0,0.0116332]
[1765822305912,0.84547,85963.0,85962.0,0.0116332]
[1765822306109,0.6771032,85962.0,85961.0,0.00117452]
[1765822306314,0.8471032,85962.0,85961.0,0.00017452]
[1765822306516,1.2079032,85962.0,85961.0,0.00017452]
[1765822307114,1.19627,85962.0,85961.0,0.00017452]
[1765822308215,1.19627,85962.0,85961.0,0.67180452]
[1765822308417,0.83547,85962.0,85961.0,0.67380452]
[1765822308613,0.66547,85962.0,85961.0,0.67480452]
[1765822309020,0.3608,85972.0,85962.0,0.0232664]
[1765822309226,0.85547,85972.0,85971.0,0.347662]
[1765822309621,0.85547,85972.0,85971.0,0.011632]
[1765822309822,0.66547,85964.0,85963.0,0.3724331]
[1765822310028,0.86547,85964.0,85963.0,0.3724331]
[1765822310326,0.877103,85964.0,85963.0,0.3608]
[1765822310526,0.66547,85963.0,85962.0,0.001]
[1765822310721,0.85547,85963.0,85962.0,0.001]
[1765822311738,0.6771032,85962.0,85961.0,0.00017452]
[1765822312033,0.8471032,85962.0,85961.0,0.00017452]
[1765822312920,0.83547,85962.0,85961.0,0.00217452]
[1765822313323,0.83547,85962.0,85961.0,0.00317452]
[1765822313522,0.83547,85962.0,85961.0,0.67480452]
[1765822314223,0.83547,85962.0,85961.0,0.33920452]
[1765822314623,0.83547,85962.0,85961.0,0.00317452]
[1765822317533,0.66547,85951.0,85950.0,4e-05]
[1765822317835,0.66547,85944.0,85943.0,0.0116358]
[1765822318131,0.66547,85944.0,85943.0,0.0298418]
[1765822318132,1.20627,85944.0,85943.0,0.0298418]
[1765822318332,1.20627,85944.0,85943.0,0.0116358]
[1765822318724,0.66547,85938.0,85937.0,0.01176949]
[1765822318922,0.85547,85938.0,85937.0,0.12444402]
[1765822319126,0.85547,85938.0,85937.0,0.030487]
[1765822320136,0.85547,85938.0,85937.0,0.12369014]
[1765822320332,0.85547,85938.0,85937.0,0.11205354]
[1765822320633,0.85547,85938.0,85918.0,0.14571029]
[1765822320634,0.66547,85919.0,85918.0,0.14571029]
[1765822320845,1.19627,85919.0,85918.0,0.10489447]
[1765822321029,1.19627,85919.0,85918.0,0.12326567]
[1765822321229,1.19627,85919.0,85918.0,0.0183712]
[1765822321537,0.66547,85901.0,85900.0,4e-05]
[1765822321833,1.18627,85901.0,85900.0,0.0116816]
[1765822322035,1.18627,85901.0,85900.0,4e-05]
[1765822322234,0.69443,85893.0,85892.0,0.0187925]
[1765822322443,1.21523,85893.0,85892.0,0.0187925]
[1765822323538,0.69443,85887.0,85886.0,9.752e-05]
[1765822323734,0.87455164,85887.0,85886.0,0.01801067]
[1765822324929,0.87655164,85887.0,85886.0,0.01801067]
[1765822325332,0.87855164,85887.0,85886.0,0.01801067]
[1765822325535,0.69855164,85887.0,85886.0,0.01801067]
[1765822325733,0.70855164,85887.0,85886.0,0.35746067]
[1765822325931,0.69855164,85887.0,85886.0,0.70756067]
[1765822326133,0.86855164,85887.0,85886.0,0.70756067]
[1765822326635,0.85855164,85887.0,85886.0,0.70756067]
[1765822327048,0.85755164,85887.0,85886.0,0.01801067]
[1765822327333,0.85555164,85887.0,85886.0,0.01801067]
[1765822327542,1.58807164,85887.0,85886.0,0.01801067]
[1765822327737,0.69443,85879.0,85878.0,0.00017462]
[1765822327937,1.2668745,85879.0,85878.0,4.62e-06]
[1765822328242,1.2668745,85879.0,85858.0,0.00232944]
[1765822328243,0.69443,85859.0,85858.0,0.00232944]
[1765822328433,1.22523,85859.0,85858.0,0.00232944]
[1765822329240,1.22523,85859.0,85858.0,0.02048604]
[1765822329535,0.86443,85859.0,85858.0,0.02048604]
[1765822329726,1.22538121,85859.0,85858.0,0.02048604]
[1765822329930,1.22538121,85859.0,85850.0,0.00021462]
[1765822329931,0.69443,85851.0,85850.0,0.00021462]
[1765822330131,1.22523,85851.0,85850.0,0.00021462]
[1765822330742,1.22123,85851.0,85850.0,0.00021462]
[1765822331129,1.21823,85851.0,85850.0,0.00021462]
[1765822331342,1.21823,85851.0,85850.0,0.00421462]
[1765822331838,1.21823,85851.0,85850.0,0.00721462]
[1765822332144,1.94991,85851.0,85850.0,0.11871369]
[1765822332344,1.94991,85851.0,85850.0,0.36494995]
[1765822332835,0.04,85851.0,85850.0,0.8066053]
[1765822333633,0.0955,85858.0,85857.0,0.7011975]
[1765822333930,0.63877,85858.0,85857.0,0.7011975]
[1765822334127,0.98993,85858.0,85857.0,0.7011975]
[1765822334331,0.98993,85858.0,85857.0,0.0116475]
[1765822334529,0.7060779,85854.0,85853.0,0.0116479]
[1765822334731,1.25523,85854.0,85853.0,0.0116479]
[1765822335235,0.69443,85851.0,85850.0,0.01849995]
[1765822335545,0.89443,85851.0,85850.0,0.01849995]
[1765822336236,1.62627,85851.0,85850.0,0.01849995]
[1765822336430,1.98707,85851.0,85850.0,0.01849995]
[1765822337032,0.69443,85832.0,85823.0,0.011652]
[1765822337251,0.89443,85832.0,85830.0,0.0116511]
[1765822337438,1.25523,85832.0,85830.0,0.0116511]
[1765822337638,1.25523,85832.0,85831.0,0.01834321]
[1765822338340,1.25523,85832.0,85831.0,0.02234321]
[1765822339741,1.25523,85832.0,85831.0,3.21e-06]
[1765822340053,1.61603,85832.0,85831.0,3.21e-06]
[1765822340252,0.9021519,85824.0,85823.0,7.95e-06]
[1765822340448,0.9021519,85824.0,85818.0,8.48e-06]
[1765822340449,0.7060826,85819.0,85818.0,8.48e-06]
[1765822340753,0.69443,85801.0,85800.0,4e-05]
[1765822340948,0.86443,85801.0,85800.0,4e-05]
[1765822341248,0.86443,85801.0,85800.0,0.01831989]
[1765822341454,1.22523,85801.0,85800.0,0.01831989]
[1765822342550,0.69443,85793.0,85792.0,0.00011655]
[1765822342852,1.21523,85793.0,85792.0,0.00011655]
[1765822343154,1.21123,85793.0,85792.0,0.01806677]
[1765822343345,1.21123,85793.0,85792.0,0.70761677]
[1765822343738,1.94367,85793.0,85792.0,0.70761677]
[1765822343949,0.3608,85793.0,85792.0,0.70761677]
[1765822344146,0.02,85793.0,85792.0,1.22417707]
[1765822344550,0.94443,85806.0,85805.0,0.7012045]
[1765822344852,0.2,85806.0,85805.0,0.7012045]
[1765822345047,0.36097474,85809.0,85808.0,0.68955]
[1765822345248,0.55097474,85809.0,85808.0,0.68955]
[1765822346055,1.24540474,85809.0,85808.0,0.68955]
[1765822346254,0.89424474,85809.0,85808.0,0.68955]
[1765822346641,0.89724474,85809.0,85808.0,0.68955]
[1765822346846,0.69443,85793.0,85792.0,0.02972307]
[1765822347144,0.86443,85793.0,85792.0,0.02972307]
[1765822347351,0.86443,85793.0,85792.0,0.71927307]
[1765822347651,0.3608,85794.0,85793.0,0.68955]
[1765822347951,0.1997,85857.0,85792.0,0.02972307]
[1765822347952,0.3608,85802.0,85801.0,0.7012051]
[1765822348560,0.5308,85802.0,85801.0,0.7012051]
[1765822348755,0.3608,85802.0,85801.0,0.7012051]
[1765822349352,0.5408,85802.0,85801.0,0.7012051]
[1765822349757,0.3638,85802.0,85801.0,0.7012051]
[1765822350056,0.5638,85802.0,85801.0,0.7012051]
[1765822350255,0.5648,85802.0,85801.0,0.7012051]
[1765822350461,0.3648,85802.0,85801.0,0.7012051]
[1765822350959,1e-07,85802.0,85801.0,0.7012051]
[1765822351154,0.00017474,85809.0,85808.0,0.7093741]
[1765822351357,0.02017474,85809.0,85808.0,0.7093741]
[1765822351557,0.3608,85818.0,85808.0,0.7093741]
[1765822351558,0.03,85822.0,85818.0,0.3478028]
[1765822351870,1.21362899,85819.0,85818.0,0.6681728]
[1765822352459,0.69966,85816.0,85815.0,0.0116531]
[1765822352664,0.87966,85816.0,85815.0,0.0116531]
[1765822352955,0.69966,85808.0,85807.0,0.01182904]
[1765822353155,1.25046,85808.0,85807.0,0.01182904]
[1765822354160,1.25246,85808.0,85807.0,0.01182904]
[1765822354961,1.25246,85808.0,85807.0,0.33639904]
[1765822355253,1.25246,85808.0,85807.0,0.01182904]
[1765822355254,1.25546,85808.0,85807.0,0.01182904]
[1765822355462,1.25546,85808.0,85807.0,0.00017484]
[1765822356854,1.25346,85808.0,85807.0,0.00017484]
[1765822357059,1.25446,85808.0,85807.0,0.00017484]
[1765822357462,1.23446,85808.0,85807.0,0.65669484]
[1765822357760,1.23446,85808.0,85807.0,0.00017484]
[1765822359961,0.3648,85808.0,85807.0,0.65669484]
[1765822360152,0.024,85808.0,85807.0,0.65669484]
[1765822360354,0.194,85808.0,85807.0,0.65669484]
[1765822360665,0.55005,85808.0,85807.0,0.65669484]
[1765822360858,0.89366,85808.0,85807.0,0.00017484]
[1765822361555,0.89366,85808.0,85807.0,0.32474484]
[1765822361556,0.89166,85808.0,85807.0,0.32474484]
[1765822361960,0.89366,85808.0,85807.0,0.65669484]
[1765822362165,0.89266,85808.0,85807.0,0.65669484]
[1765822362964,0.88966,85808.0,85807.0,0.65669484]
[1765822363163,0.89366,85808.0,85807.0,0.00017484]
[1765822363462,0.014,85808.0,85807.0,0.65669484]
[1765822363662,0.71366,85808.0,85807.0,0.00017484]
[1765822363856,0.87266,85808.0,85807.0,0.00017484]
[1765822364056,0.87466,85808.0,85807.0,0.00017484]
[1765822364261,0.015,85808.0,85807.0,0.65669484]
[1765822364564,0.175,85808.0,85807.0,0.65669484]
[1765822364963,0.35613899,85819.0,85818.0,0.3362228]
[1765822365164,0.16008899,85819.0,85818.0,0.6681728]
[1765822365356,0.03008899,85819.0,85818.0,0.6681728]
[1765822365658,0.20008899,85819.0,85818.0,0.6681728]
[1765822365860,0.00017484,85824.0,85823.0,0.6681721]
[1765822366066,0.00017484,85824.0,85823.0,1.0289721]
[1765822366255,0.19017484,85824.0,85823.0,1.0289721]
[1765822366661,0.88983484,85824.0,85823.0,0.0116521]
[1765822366870,0.35605,85809.0,85808.0,0.6681741]
[1765822367060,0.69966,85809.0,85808.0,0.6681741]
[1765822367257,0.53605,85809.0,85808.0,0.6681741]
[1765822367570,0.87966,85809.0,85808.0,0.0116541]
[1765822368760,1.24046,85809.0,85808.0,0.0116541]
[1765822369162,1.24246,85809.0,85808.0,0.001]
[1765822369555,1.24246,85809.0,85808.0,0.0009111]
[1765822369760,0.7113141,85808.0,85807.0,0.01182894]
[1765822370054,0.86966,85808.0,85807.0,0.01182894]
[1765822370861,0.86966,85808.0,85807.0,0.33639894]
[1765822371362,0.87166,85808.0,85807.0,0.00017484]
[1765822371955,0.87266,85808.0,85807.0,0.00017484]
[1765822372667,0.69966,85802.0,85801.0,0.011655]
[1765822372867,1.2521149,85802.0,85801.0,0.011655]
[1765822373970,1.2531149,85802.0,85801.0,0.011655]
[1765822374664,0.0116551,85801.0,85800.0,0.0116551]
[1765822374862,0.8813151,85801.0,85800.0,0.0116551]
[1765822375058,0.69966,85798.0,85797.0,0.0116555]
[1765822375370,0.86966,85798.0,85797.0,0.0116555]
[1765822376153,0.17,85798.0,85793.0,0.00011679]
[1765822376359,1.06046,85794.0,85793.0,0.11654471]
[1765822376663,1.23046,85794.0,85793.0,0.20822615]
[1765822377167,1.23060365,85794.0,85793.0,0.09179823]
[1765822377368,1.23060365,85794.0,85793.0,0.19757005]
[1765822377561,1.23060365,85794.0,85793.0,0.09279823]
[1765822378157,1.23060365,85794.0,85793.0,0.09379823]
[1765822378364,1.23060365,85794.0,85793.0,0.19857005]
[1765822378556,1.96348365,85794.0,85793.0,0.00211679]
[1765822378768,0.7113161,85793.0,85792.0,1.75e-06]
[1765822378960,0.8881466,85790.0,85789.0,0.10477182]
[1765822379162,1.4389466,85790.0,85789.0,0.10477182]
[1765822379356,1.4389466,85790.0,85789.0,1.82e-06]
[1765822379567,0.7113176,85782.0,85781.0,0.00010304]
[1765822379863,0.7113176,85782.0,85756.0,0.21976272]
[1765822379864,0.71132,85765.0,85756.0,0.21976272]
[1765822380070,0.71132,85765.0,85759.0,0.0116607]
[1765822380071,1.98496,85765.0,85759.0,0.0116607]
[1765822380274,1.98496,85765.0,85756.0,0.20810162]
[1765822380564,1.98496,85765.0,85764.0,0.06874045]
[1765822380766,1.98508887,85765.0,85764.0,0.06874045]
[1765822380969,0.7113219,85751.0,85750.0,4e-05]
[1765822381269,1.26046,85751.0,85750.0,0.03076469]
[1765822381460,1.62126,85751.0,85750.0,0.01910269]
[1765822381859,2.35434,85751.0,85750.0,0.01910269]
[1765822382177,0.79302,85751.0,85750.0,0.69839269]
[1765822382770,0.11,85751.0,85750.0,0.69939269]
[1765822382955,0.11,85751.0,85750.0,0.70339269]
[1765822383163,0.3608,85753.0,85752.0,0.67929]
[1765822383361,0.5408,85753.0,85752.0,0.67929]
[1765822384272,0.5408,85753.0,85752.0,0.68029]
[1765822384664,0.5408,85753.0,85752.0,0.68129]
[1765822384872,0.4008,85753.0,85752.0,0.68129]
[1765822385270,0.04,85753.0,85752.0,0.68129]
[1765822385664,0.02,85753.0,85752.0,0.002]
[1765822385862,0.02,85753.0,85752.0,0.6929517]
[1765822386266,0.00012887,85765.0,85764.0,0.35019]
[1765822386469,0.01012887,85765.0,85764.0,0.67929]
[1765822387371,0.68302,85764.0,85763.0,0.0116602]
[1765822387572,0.70302,85764.0,85763.0,0.6909502]
[1765822387772,0.02,85764.0,85763.0,0.6909502]
[1765822388080,0.00212887,85765.0,85764.0,0.67929]
[1765822388373,0.02112887,85765.0,85764.0,0.67929]
[1765822388576,0.3608,85774.0,85772.0,0.67929]
[1765822388772,0.50978484,85773.0,85772.0,0.67929]
[1765822389168,0.18017484,85773.0,85772.0,0.690949]
[1765822389374,0.04017484,85773.0,85772.0,0.690949]
[1765822389667,0.00026246,85773.0,85772.0,0.690949]
[1765822389972,0.18226246,85773.0,85772.0,0.690949]
[1765822390170,0.00226246,85773.0,85772.0,0.690949]
[1765822390372,0.18226246,85773.0,85772.0,0.690949]
[1765822390676,0.19126246,85773.0,85772.0,0.690949]
[1765822391068,0.19126246,85773.0,85772.0,0.78639228]
[1765822391474,0.18126246,85773.0,85772.0,0.78639228]
[1765822392169,0.18026246,85773.0,85772.0,0.78639228]
[1765822394476,0.00026246,85773.0,85772.0,0.78639228]
[1765822394669,0.3608,85783.0,85782.0,0.6909476]
[1765822394871,0.3608,85794.0,85793.0,0.67929]
[1765822395074,0.12,85794.0,85793.0,1.0517461]
[1765822395678,0.68302,85809.0,85808.0,0.6909441]
[1765822395877,0.5196958,85809.0,85808.0,0.6909441]
[1765822396077,0.8731058,85809.0,85808.0,0.6909441]
[1765822396678,8.58e-05,85809.0,85808.0,0.6909441]
[1765822396890,0.1700858,85809.0,85808.0,0.6909441]
[1765822397382,0.1740858,85809.0,85808.0,0.6909441]
[1765822397579,0.8687598,85809.0,85807.0,0.0116542]
[1765822397783,0.68302,85804.0,85803.0,0.0116548]
[1765822397983,0.68302,85804.0,85803.0,0.3618448]
[1765822397984,0.85302,85804.0,85803.0,0.3618448]
[1765822399378,0.8666747,85804.0,85803.0,0.3618448]
[1765822399785,0.85602,85804.0,85803.0,0.3618448]
[1765822400082,0.85602,85804.0,85803.0,0.6909448]
[1765822400589,0.85602,85804.0,85803.0,0.0116548]
[1765822400791,0.85602,85804.0,85803.0,0.6909448]
[1765822401089,0.85602,85804.0,85803.0,0.0116548]
[1765822401590,0.68302,85803.0,85802.0,0.0116549]
[1765822401785,0.68302,85801.0,85800.0,0.00017484]
[1765822401986,0.86302,85801.0,85800.0,0.00017484]
[1765822402890,0.86402,85801.0,85800.0,0.00017484]
[1765822403882,0.86702,85801.0,85800.0,0.00017484]
[1765822405385,0.86902,85801.0,85800.0,0.00017484]
[1765822405882,0.86802,85801.0,85800.0,0.00017484]
[1765822406486,0.86602,85801.0,85800.0,0.00017484]
[1765822406785,0.86802,85801.0,85800.0,0.00017484]
[1765822407182,0.86802,85801.0,85800.0,0.35036484]
[1765822407386,0.86802,85801.0,85800.0,0.54973484]
[1765822407689,0.86802,85801.0,85800.0,0.00017484]
[1765822407891,0.86502,85801.0,85800.0,0.00017484]
[1765822408192,0.86502,85801.0,85800.0,0.87883484]
[1765822408193,0.86802,85801.0,85800.0,0.87883484]
[1765822408577,0.86802,85801.0,85800.0,0.00017484]
[1765822409982,0.68802,85801.0,85800.0,0.89885484]
[1765822410182,0.005,85801.0,85800.0,0.89885484]
[1765822410494,0.006,85801.0,85800.0,0.89885484]
[1765822410678,8.58e-05,85809.0,85808.0,0.7087941]
[1765822410882,0.0100858,85809.0,85808.0,1.0695941]
[1765822411078,8.58e-05,85809.0,85808.0,1.0695941]
[1765822411289,0.00233053,85818.0,85816.0,0.708793]
[1765822411495,0.19017484,85817.0,85816.0,1.069593]
[1765822412091,0.19017484,85817.0,85810.0,0.20142]
[1765822412092,0.68474,85814.0,85813.0,0.0116534]
[1765822412289,0.8748467,85814.0,85813.0,0.0116534]
[1765822412595,0.8748467,85814.0,85813.0,0.03012245]
[1765822412778,0.8748467,85814.0,85813.0,0.0116534]
[1765822413183,0.0201067,85814.0,85813.0,0.72057818]
[1765822413495,0.1701067,85814.0,85813.0,0.7015534]
[1765822413794,0.8548467,85814.0,85813.0,0.7015534]
[1765822413995,0.00017484,85817.0,85813.0,0.72033618]
[1765822414195,0.09554,85827.0,85826.0,0.7015517]
[1765822414491,0.96028,85827.0,85826.0,0.7015517]
[1765822414994,0.96028,85827.0,85826.0,1.0623517]
[1765822415195,0.61059,85827.0,85826.0,1.0623517]
[1765822416285,0.61159,85827.0,85826.0,1.0623517]
[1765822416486,0.51605,85827.0,85826.0,1.0623517]
[1765822416889,0.51505,85827.0,85826.0,1.0623517]
[1765822417086,0.51705,85827.0,85826.0,1.0623517]
[1765822417285,0.182,85827.0,85826.0,1.0623517]
[1765822417491,0.002,85827.0,85826.0,1.0623517]
[1765822417699,0.171,85827.0,85826.0,1.0623517]
[1765822417882,0.172,85827.0,85826.0,1.0623517]
[1765822418396,0.041,85827.0,85826.0,1.15460364]
[1765822418595,0.19,85827.0,85826.0,1.15460364]
[1765822418895,0.051,85827.0,85826.0,1.18332461]
[1765822419095,0.00017484,85835.0,85834.0,0.7015506]
[1765822419294,0.11017484,85835.0,85834.0,1.0623506]
[1765822419607,0.68706944,85858.0,85857.0,0.7015475]
[1765822419889,0.33505,85851.0,85850.0,0.88813]
[1765822420089,0.87474,85851.0,85850.0,0.88813]
[1765822420888,0.19,85851.0,85850.0,0.8997784]
[1765822421287,0.191,85851.0,85850.0,0.8997784]
[1765822421891,0.072,85851.0,85850.0,0.8997784]
[1765822422087,0.182,85851.0,85850.0,0.8997784]
[1765822422596,0.00232944,85858.0,85857.0,0.7015475]
[1765822422990,0.52737944,85858.0,85857.0,1.0623475]
[1765822423186,0.19232944,85858.0,85857.0,1.0623475]
[1765822423385,0.87706944,85858.0,85857.0,1.0623475]
[1765822424394,0.00232944,85858.0,85857.0,1.0623475]
[1765822424596,0.17232944,85858.0,85857.0,1.0623475]
[1765822425086,0.17332944,85858.0,85857.0,1.0623475]
[1765822425687,0.85806944,85858.0,85857.0,0.10461141]
[1765822426394,0.85706944,85858.0,85857.0,0.10461141]
[1765822427591,0.68474,85850.0,85849.0,0.3724485]
[1765822427781,0.85474,85850.0,85849.0,0.3724485]
[1765822427982,0.85399083,85850.0,85849.0,0.7077985]
[1765822428187,0.85399083,85850.0,85849.0,1.0623485]
[1765822429396,0.68474,85843.0,85842.0,0.74418424]
[1765822429589,0.87474,85843.0,85842.0,0.74418424]
[1765822430195,0.87474,85843.0,85842.0,1.43408424]
[1765822430799,0.87474,85843.0,85842.0,1.52913309]
[1765822432201,0.87574,85843.0,85842.0,1.52913309]
[1765822432605,0.87674,85843.0,85842.0,1.52913309]
[1765822434907,0.192,85843.0,85842.0,1.52913309]
[1765822435299,0.001,85843.0,85842.0,1.88993309]
[1765822435503,0.00232944,85858.0,85857.0,0.7015475]
[1765822435803,0.10232944,85858.0,85857.0,1.0623475]
[1765822436701,0.43737944,85858.0,85857.0,1.0623475]
[1765822436901,0.78706944,85858.0,85857.0,1.0623475]
[1765822437704,0.78706944,85858.0,85857.0,1.0633475]